[Event "Titled Tuesday Blitz May 2 Early 2023"]
[White "Durarbayli, Vasif"]
[Black "Simonian, Hrair"]
[WhiteFideId "13402935"]
[BlackFideId "13302337"]
[WhiteElo "2551"]
[BlackElo "2447"]
[Result "1-0"]
[Round "05"]
[TimeControl "180+2"]
[Date "2023.05.02"]
[WhiteClock "0:00:10"]
[BlackClock "0:00:19"]

1. e4 {[%clk 0:03:00]}  c5 {[%clk 0:03:00]} 2. Nf3 {[%clk 0:03:00]}  e6 {[%clk 0:03:00]} 3. d4 {[%clk 0:03:01]}  cxd4 {[%clk 0:03:01]} 4. Nxd4 {[%clk 0:03:01]}  Nf6 {[%clk 0:03:02]} 5. Nc3 {[%clk 0:03:00]}  Nc6 {[%clk 0:03:02]} 6. Nxc6 {[%clk 0:03:00]}  bxc6 {[%clk 0:03:03]} 7. e5 {[%clk 0:03:00]}  Nd5 {[%clk 0:03:04]} 8. Ne4 {[%clk 0:03:01]}  Qc7 {[%clk 0:03:04]} 9. f4 {[%clk 0:03:01]}  Rb8 {[%clk 0:03:03]} 10. a3 {[%clk 0:02:57]}  Qb6 {[%clk 0:03:02]} 11. Bd3 {[%clk 0:02:51]}  Ba6 {[%clk 0:02:53]} 12. c4 {[%clk 0:02:25]}  Ne3 {[%clk 0:02:34]} 13. Qe2 {[%clk 0:02:25]}  Nf5 {[%clk 0:02:34]} 14. b4 {[%clk 0:02:21]}  c5 {[%clk 0:02:16]} 15. b5 {[%clk 0:02:18]}  Bb7 {[%clk 0:02:15]} 16. O-O {[%clk 0:02:06]}  Be7 {[%clk 0:02:12]} 17. a4 {[%clk 0:02:06]}  a5 {[%clk 0:02:09]} 18. Bb2 {[%clk 0:01:57]}  O-O {[%clk 0:02:06]} 19. Rad1 {[%clk 0:01:57]}  Rfd8 {[%clk 0:02:06]} 20. Bb1 {[%clk 0:01:41]}  d5 {[%clk 0:01:43]} 21. exd6 {[%clk 0:01:39]}  Nxd6 {[%clk 0:01:44]} 22. Ng5 {[%clk 0:01:29]}  h6 {[%clk 0:01:13]} 23. Nxe6 {[%clk 0:01:29]}  fxe6 {[%clk 0:01:12]} 24. Qxe6+ {[%clk 0:01:29]}  Kf8 {[%clk 0:01:12]} 25. Bxg7+ {[%clk 0:01:23]}  Kxg7 {[%clk 0:01:08]} 26. Qg6+ {[%clk 0:00:49]}  Kf8 {[%clk 0:01:08]} 27. Qxh6+ {[%clk 0:00:40]}  Ke8 {[%clk 0:01:07]} 28. Rfe1 {[%clk 0:00:38]}  Kd7 {[%clk 0:00:47]} 29. Bf5+ {[%clk 0:00:31]}  Ke8 {[%clk 0:00:36]} 30. Qh8+ {[%clk 0:00:20]}  Kf7 {[%clk 0:00:35]} 31. Qh7+ {[%clk 0:00:20]}  Kf8 {[%clk 0:00:28]} 32. Qxe7+ {[%clk 0:00:20]}  Kg8 {[%clk 0:00:28]} 33. Qe6+ {[%clk 0:00:18]}  Kf8 {[%clk 0:00:27]} 34. Qf6+ {[%clk 0:00:18]}  Kg8 {[%clk 0:00:25]} 35. Qg6+ {[%clk 0:00:12]}  Kf8 {[%clk 0:00:23]} 36. Qh6+ {[%clk 0:00:13]}  Kf7 {[%clk 0:00:20]} 37. Be6+ {[%clk 0:00:12]}  Ke7 {[%clk 0:00:21]} 38. Qg7+ {[%clk 0:00:12]}  Ke8 {[%clk 0:00:19]} 39. Bd7# {[%clk 0:00:10]} 1-0


[Site "https://www.chess.com"]

[Event "Titled Tuesday Blitz May 2 Early 2023"]
[White "Quesada Perez, Yuniesky"]
[Black "Djokic, Mihailo"]
[WhiteFideId "3504409"]
[BlackFideId "976440"]
[WhiteElo "2585"]
[BlackElo "2294"]
[Result "1/2-1/2"]
[Round "05"]
[TimeControl "180+2"]
[Date "2023.05.02"]
[WhiteClock "0:00:06"]
[BlackClock "0:00:04"]

1. e4 {[%clk 0:03:00]}  c5 {[%clk 0:02:53]} 2. Nf3 {[%clk 0:03:00]}  d6 {[%clk 0:02:51]} 3. d4 {[%clk 0:03:00]}  cxd4 {[%clk 0:02:52]} 4. Nxd4 {[%clk 0:03:00]}  Nf6 {[%clk 0:02:50]} 5. Nc3 {[%clk 0:03:01]}  g6 {[%clk 0:02:50]} 6. Be3 {[%clk 0:03:00]}  Bg7 {[%clk 0:02:51]} 7. f3 {[%clk 0:03:00]}  Kf8 {[%clk 0:02:51]} 8. Qd2 {[%clk 0:02:58]}  h5 {[%clk 0:02:50]} 9. O-O-O {[%clk 0:02:57]}  a6 {[%clk 0:02:49]} 10. e5 {[%clk 0:02:53]}  Ne8 {[%clk 0:02:48]} 11. exd6 {[%clk 0:02:51]}  Qxd6 {[%clk 0:02:45]} 12. Bc4 {[%clk 0:02:48]}  Nd7 {[%clk 0:02:43]} 13. Qf2 {[%clk 0:02:40]}  Qc7 {[%clk 0:02:38]} 14. Qe2 {[%clk 0:02:31]}  Nd6 {[%clk 0:02:36]} 15. Bb3 {[%clk 0:02:28]}  Nf6 {[%clk 0:02:36]} 16. Rhe1 {[%clk 0:02:24]}  Nf5 {[%clk 0:02:30]} 17. Bg5 {[%clk 0:02:14]}  Bh6 {[%clk 0:02:24]} 18. Bxh6+ {[%clk 0:02:05]}  Rxh6 {[%clk 0:02:22]} 19. Qd2 {[%clk 0:01:34]}  Rh8 {[%clk 0:02:14]} 20. Nde2 {[%clk 0:01:30]}  Kg7 {[%clk 0:02:09]} 21. Nf4 {[%clk 0:01:30]}  e6 {[%clk 0:02:04]} 22. g3 {[%clk 0:01:28]}  b5 {[%clk 0:02:03]} 23. Ne4 {[%clk 0:01:26]}  Nxe4 {[%clk 0:01:53]} 24. fxe4 {[%clk 0:01:27]}  Nh6 {[%clk 0:01:44]} 25. Rf1 {[%clk 0:01:13]}  Ng4 {[%clk 0:01:40]} 26. Nd3 {[%clk 0:01:10]}  Bb7 {[%clk 0:01:37]} 27. Rf4 {[%clk 0:01:08]}  Rhf8 {[%clk 0:01:25]} 28. Rdf1 {[%clk 0:01:07]}  Rad8 {[%clk 0:01:20]} 29. Kb1 {[%clk 0:01:04]}  Ne5 {[%clk 0:01:16]} 30. Qe3 {[%clk 0:00:55]}  Nxd3 {[%clk 0:01:16]} 31. cxd3 {[%clk 0:00:54]}  Qe5 {[%clk 0:01:13]} 32. g4 {[%clk 0:00:43]}  hxg4 {[%clk 0:01:06]} 33. Rxg4 {[%clk 0:00:41]}  Qd4 {[%clk 0:00:55]} 34. Qf4 {[%clk 0:00:32]}  Qxd3+ {[%clk 0:00:48]} 35. Bc2 {[%clk 0:00:32]}  Qd4 {[%clk 0:00:45]} 36. Rh4 {[%clk 0:00:32]}  Kg8 {[%clk 0:00:38]} 37. Qh6 {[%clk 0:00:22]}  Qg7 {[%clk 0:00:38]} 38. Qg5 {[%clk 0:00:23]}  f6 {[%clk 0:00:34]} 39. Qg4 {[%clk 0:00:22]}  f5 {[%clk 0:00:31]} 40. exf5 {[%clk 0:00:23]}  exf5 {[%clk 0:00:28]} 41. Bb3+ {[%clk 0:00:22]}  Bd5 {[%clk 0:00:28]} 42. Qg5 {[%clk 0:00:19]}  Bxb3 {[%clk 0:00:21]} 43. axb3 {[%clk 0:00:20]}  Qf6 {[%clk 0:00:17]} 44. Qh6 {[%clk 0:00:20]}  Rd7 {[%clk 0:00:16]} 45. Rg1 {[%clk 0:00:20]}  Rg7 {[%clk 0:00:15]} 46. Rd1 {[%clk 0:00:17]}  Qe6 {[%clk 0:00:10]} 47. b4 {[%clk 0:00:14]}  Kf7 {[%clk 0:00:10]} 48. Rhd4 {[%clk 0:00:13]}  Kg8 {[%clk 0:00:08]} 49. h4 {[%clk 0:00:12]}  f4 {[%clk 0:00:08]} 50. Rxf4 {[%clk 0:00:11]}  Rxf4 {[%clk 0:00:05]} 51. Qxf4 {[%clk 0:00:12]}  Qf5+ {[%clk 0:00:06]} 52. Qxf5 {[%clk 0:00:10]}  gxf5 {[%clk 0:00:06]} 53. Rd5 {[%clk 0:00:10]}  Rf7 {[%clk 0:00:04]} 54. Kc2 {[%clk 0:00:10]}  f4 {[%clk 0:00:03]} 55. Kd2 {[%clk 0:00:10]}  f3 {[%clk 0:00:04]} 56. Ke1 {[%clk 0:00:10]}  Rf4 {[%clk 0:00:04]} 57. Rd6 {[%clk 0:00:05]}  Rxh4 {[%clk 0:00:03]} 58. Rxa6 {[%clk 0:00:05]}  Rxb4 {[%clk 0:00:03]} 59. Kf2 {[%clk 0:00:05]}  Rb3 {[%clk 0:00:02]} 60. Rf6 {[%clk 0:00:05]}  Kg7 {[%clk 0:00:02]} 61. Rxf3 {[%clk 0:00:05]}  Rxb2+ {[%clk 0:00:03]} 62. Ke1 {[%clk 0:00:05]}  Kg6 {[%clk 0:00:03]} 63. Kd1 {[%clk 0:00:05]}  Kg5 {[%clk 0:00:03]} 64. Kc1 {[%clk 0:00:05]}  Rb4 {[%clk 0:00:03]} 65. Kc2 {[%clk 0:00:05]}  Kg4 {[%clk 0:00:04]} 66. Rf8 {[%clk 0:00:05]}  Re4 {[%clk 0:00:02]} 67. Kb3 {[%clk 0:00:05]}  b4 {[%clk 0:00:03]} 68. Rb8 {[%clk 0:00:05]}  Kf3 {[%clk 0:00:03]} 69. Rxb4 {[%clk 0:00:05]}  Rxb4+ {[%clk 0:00:04]} 70. Kxb4 {[%clk 0:00:06]} 1/2-1/2


[Site "https://www.chess.com"]

[Event "Titled Tuesday Blitz May 2 Early 2023"]
[White "Djordjevic, Vuk"]
[Black "Filgueira, Hernan"]
[WhiteFideId "902098"]
[BlackFideId "101770"]
[WhiteElo "2452"]
[BlackElo "2363"]
[Result "0-1"]
[Round "05"]
[TimeControl "180+2"]
[Date "2023.05.02"]
[WhiteClock "0:00:01"]
[BlackClock "0:00:29"]

1. d4 {[%clk 0:03:00]}  d5 {[%clk 0:02:57]} 2. Nf3 {[%clk 0:03:00]}  Nf6 {[%clk 0:02:55]} 3. c4 {[%clk 0:03:00]}  e6 {[%clk 0:02:53]} 4. Nc3 {[%clk 0:03:00]}  c6 {[%clk 0:02:52]} 5. Bg5 {[%clk 0:02:55]}  h6 {[%clk 0:02:50]} 6. Bxf6 {[%clk 0:02:54]}  Qxf6 {[%clk 0:02:49]} 7. e3 {[%clk 0:02:54]}  Nd7 {[%clk 0:02:49]} 8. Qc2 {[%clk 0:02:51]}  Qd8 {[%clk 0:02:43]} 9. Rd1 {[%clk 0:02:44]}  Be7 {[%clk 0:02:39]} 10. Bd3 {[%clk 0:02:42]}  O-O {[%clk 0:02:34]} 11. O-O {[%clk 0:02:42]}  a6 {[%clk 0:02:30]} 12. e4 {[%clk 0:02:42]}  dxc4 {[%clk 0:02:26]} 13. Bxc4 {[%clk 0:02:42]}  b5 {[%clk 0:02:26]} 14. Bb3 {[%clk 0:02:41]}  Bb7 {[%clk 0:02:20]} 15. a4 {[%clk 0:02:32]}  Rc8 {[%clk 0:02:05]} 16. Qe2 {[%clk 0:01:58]}  Re8 {[%clk 0:01:52]} 17. axb5 {[%clk 0:01:53]}  axb5 {[%clk 0:01:51]} 18. e5 {[%clk 0:01:50]}  Qb6 {[%clk 0:01:45]} 19. Ne4 {[%clk 0:01:41]}  c5 {[%clk 0:01:39]} 20. dxc5 {[%clk 0:01:23]}  Nxc5 {[%clk 0:01:38]} 21. Nxc5 {[%clk 0:01:22]}  Bxc5 {[%clk 0:01:36]} 22. Rd3 {[%clk 0:01:19]}  b4 {[%clk 0:01:26]} 23. Nd2 {[%clk 0:00:34]}  Ba6 {[%clk 0:01:13]} 24. Ne4 {[%clk 0:00:33]}  Bxd3 {[%clk 0:00:59]} 25. Qxd3 {[%clk 0:00:34]}  Red8 {[%clk 0:00:58]} 26. Qg3 {[%clk 0:00:30]}  Kf8 {[%clk 0:00:54]} 27. h3 {[%clk 0:00:20]}  Bd4 {[%clk 0:00:49]} 28. Qf4 {[%clk 0:00:19]}  Rc7 {[%clk 0:00:42]} 29. Rd1 {[%clk 0:00:14]}  Rcd7 {[%clk 0:00:41]} 30. Nd6 {[%clk 0:00:09]}  Bxb2 {[%clk 0:00:37]} 31. Bxe6 {[%clk 0:00:09]}  Bxe5 {[%clk 0:00:31]} 32. Qf5 {[%clk 0:00:05]}  g6 {[%clk 0:00:30]} 33. Qxe5 {[%clk 0:00:02]}  Rxd6 {[%clk 0:00:30]} 34. Rxd6 {[%clk 0:00:02]}  Qxd6 {[%clk 0:00:29]} 35. Qh8+ {[%clk 0:00:01]}  Ke7 {[%clk 0:00:29]} 0-1


[Site "https://www.chess.com"]

[Event "Titled Tuesday Blitz May 2 Early 2023"]
[White "Lenaerts, Lennert"]
[Black "Suyarov, Mukhammadzokhid"]
[WhiteFideId "211435"]
[BlackFideId "14210495"]
[WhiteElo "2334"]
[BlackElo "2361"]
[Result "0-1"]
[Round "05"]
[TimeControl "180+2"]
[Date "2023.05.02"]
[WhiteClock "0:00:00"]
[BlackClock "0:00:00"]

1. d4 {[%clk 0:00:01]}  e6 {[%clk 0:00:01]} 2. c4 {[%clk 0:00:01]}  b6 {[%clk 0:00:01]} 3. a3 {[%clk 0:00:01]}  Bb7 {[%clk 0:00:01]} 4. Nc3 {[%clk 0:00:01]}  Nf6 {[%clk 0:00:01]} 5. d5 {[%clk 0:00:01]}  g6 {[%clk 0:00:01]} 6. g3 {[%clk 0:00:01]}  Bg7 {[%clk 0:00:01]} 7. Bg2 {[%clk 0:00:01]}  e5 {[%clk 0:00:01]} 8. Nh3 {[%clk 0:00:01]}  d6 {[%clk 0:00:01]} 9. O-O {[%clk 0:00:01]}  a5 {[%clk 0:00:01]} 10. f4 {[%clk 0:00:01]}  exf4 {[%clk 0:00:01]} 11. gxf4 {[%clk 0:00:01]}  O-O {[%clk 0:00:01]} 12. e4 {[%clk 0:00:01]}  Ba6 {[%clk 0:00:01]} 13. e5 {[%clk 0:00:01]}  Ne8 {[%clk 0:00:01]} 14. e6 {[%clk 0:00:01]}  f5 {[%clk 0:00:01]} 15. Qe2 {[%clk 0:00:01]}  Qe7 {[%clk 0:00:01]} 16. Bd2 {[%clk 0:00:01]}  Nf6 {[%clk 0:00:01]} 17. b4 {[%clk 0:00:00]}  Bb7 {[%clk 0:00:01]} 18. b5 {[%clk 0:00:00]}  Ne8 {[%clk 0:00:01]} 19. Rae1 {[%clk 0:00:00]}  Bf6 {[%clk 0:00:01]} 20. Ng5 {[%clk 0:00:00]}  Ng7 {[%clk 0:00:01]} 21. Kh1 {[%clk 0:00:00]}  h6 {[%clk 0:00:01]} 22. Nf3 {[%clk 0:00:00]}  Kh7 {[%clk 0:00:01]} 23. Rg1 {[%clk 0:00:00]}  Rg8 {[%clk 0:00:01]} 24. Qd3 {[%clk 0:00:00]}  Ne8 {[%clk 0:00:01]} 25. Nd1 {[%clk 0:00:00]}  Bg7 {[%clk 0:00:01]} 26. Bh3 {[%clk 0:00:00]}  Bf6 {[%clk 0:00:01]} 27. Ne3 {[%clk 0:00:00]}  Ng7 {[%clk 0:00:01]} 28. Rxg6 {[%clk 0:00:00]}  Kxg6 {[%clk 0:00:01]} 29. Rg1+ {[%clk 0:00:00]}  Kh7 {[%clk 0:00:01]} 30. Nxf5 {[%clk 0:00:00]}  Nxf5 {[%clk 0:00:01]} 31. Qxf5+ {[%clk 0:00:00]}  Kh8 {[%clk 0:00:01]} 32. Rxg8+ {[%clk 0:00:00]}  Kxg8 {[%clk 0:00:01]} 33. Bg4 {[%clk 0:00:00]}  Na6 {[%clk 0:00:01]} 34. bxa6 {[%clk 0:00:00]}  Bxa6 {[%clk 0:00:01]} 35. Bh5 {[%clk 0:00:00]}  Rf8 {[%clk 0:00:01]} 36. Bf7+ {[%clk 0:00:00]}  Rxf7 {[%clk 0:00:01]} 37. exf7+ {[%clk 0:00:00]}  Qxf7 {[%clk 0:00:01]} 38. Qe4 {[%clk 0:00:00]}  Qe7 {[%clk 0:00:01]} 39. Qg6+ {[%clk 0:00:00]}  Bg7 {[%clk 0:00:01]} 40. Bc3 {[%clk 0:00:00]}  Qf7 {[%clk 0:00:00]} 41. Qxg7+ {[%clk 0:00:00]}  Qxg7 {[%clk 0:00:00]} 42. Bxg7 {[%clk 0:00:00]}  Kxg7 {[%clk 0:00:00]} 43. Nd2 {[%clk 0:00:00]}  Kf6 {[%clk 0:00:00]} 44. Kg2 {[%clk 0:00:00]}  Kf5 {[%clk 0:00:00]} 45. Kf3 {[%clk 0:00:00]}  a4 {[%clk 0:00:00]} 46. Nf1 {[%clk 0:00:00]}  b5 {[%clk 0:00:00]} 47. Ne3+ {[%clk 0:00:00]}  Kf6 {[%clk 0:00:00]} 48. cxb5 {[%clk 0:00:00]}  Bxb5 {[%clk 0:00:00]} 49. Ng4+ {[%clk 0:00:00]}  Kg6 {[%clk 0:00:00]} 50. Ke4 {[%clk 0:00:00]}  h5 {[%clk 0:00:00]} 51. Ne3 {[%clk 0:00:00]}  h4 {[%clk 0:00:00]} 52. Ng2 {[%clk 0:00:00]}  Kh5 {[%clk 0:00:00]} 53. f5 {[%clk 0:00:00]}  Kg5 {[%clk 0:00:00]} 54. Nf4 {[%clk 0:00:00]}  Kf6 {[%clk 0:00:00]} 55. Ng6 {[%clk 0:00:00]}  h3 {[%clk 0:00:00]} 56. Nf4 {[%clk 0:00:00]}  Bd7 {[%clk 0:00:00]} 57. Ne6 {[%clk 0:00:00]}  c5 {[%clk 0:00:00]} 58. dxc6 {[%clk 0:00:00]}  Bxc6+ {[%clk 0:00:00]} 59. Kf4 {[%clk 0:00:00]}  Bd7 {[%clk 0:00:00]} 60. Nd4 {[%clk 0:00:00]}  d5 {[%clk 0:00:00]} 61. Kg4 {[%clk 0:00:00]}  Ke5 {[%clk 0:00:00]} 62. Nf3+ {[%clk 0:00:00]}  Ke4 {[%clk 0:00:00]} 63. Ng5+ {[%clk 0:00:00]}  Ke3 {[%clk 0:00:00]} 64. Nxh3 {[%clk 0:00:00]}  d4 {[%clk 0:00:00]} 65. Nf4 {[%clk 0:00:00]}  Ke4 {[%clk 0:00:00]} 66. Kg5 {[%clk 0:00:00]}  Bxf5 {[%clk 0:00:00]} 67. h4 {[%clk 0:00:00]}  Bh7 {[%clk 0:00:00]} 68. h5 {[%clk 0:00:00]}  d3 {[%clk 0:00:00]} 69. Nh3 {[%clk 0:00:00]}  Ke3 {[%clk 0:00:00]} 70. Kh6 {[%clk 0:00:00]}  Bf5 {[%clk 0:00:00]} 0-1


[Site "https://www.chess.com"]

[Event "Titled Tuesday Blitz May 2 Early 2023"]
[White "Piesik, Piotr"]
[Black "Siva Mahadevan"]
[WhiteFideId "1136194"]
[BlackFideId "25043153"]
[WhiteElo "2299"]
[BlackElo "2249"]
[Result "1/2-1/2"]
[Round "05"]
[TimeControl "180+2"]
[Date "2023.05.02"]
[WhiteClock "0:01:12"]
[BlackClock "0:00:12"]

1. Nf3 {[%clk 0:02:59]}  Nf6 {[%clk 0:02:58]} 2. g3 {[%clk 0:02:59]}  g6 {[%clk 0:02:59]} 3. Bg2 {[%clk 0:03:00]}  Bg7 {[%clk 0:03:00]} 4. O-O {[%clk 0:03:00]}  O-O {[%clk 0:03:01]} 5. d4 {[%clk 0:03:01]}  d6 {[%clk 0:03:01]} 6. Nbd2 {[%clk 0:03:01]}  Nc6 {[%clk 0:02:56]} 7. e4 {[%clk 0:03:01]}  Bg4 {[%clk 0:02:57]} 8. c3 {[%clk 0:03:00]}  e5 {[%clk 0:02:53]} 9. dxe5 {[%clk 0:03:00]}  dxe5 {[%clk 0:02:46]} 10. Qc2 {[%clk 0:02:59]}  Nd7 {[%clk 0:02:45]} 11. Nc4 {[%clk 0:02:57]}  h6 {[%clk 0:02:43]} 12. Ne3 {[%clk 0:02:55]}  Be6 {[%clk 0:02:42]} 13. Rd1 {[%clk 0:02:55]}  a5 {[%clk 0:02:41]} 14. Bf1 {[%clk 0:02:52]}  Qf6 {[%clk 0:02:38]} 15. Nd2 {[%clk 0:02:45]}  Nc5 {[%clk 0:02:27]} 16. Nb3 {[%clk 0:02:38]}  Nxb3 {[%clk 0:01:44]} 17. axb3 {[%clk 0:02:39]}  Ne7 {[%clk 0:01:45]} 18. Bc4 {[%clk 0:02:34]}  h5 {[%clk 0:01:41]} 19. Bxe6 {[%clk 0:02:33]}  Qxe6 {[%clk 0:01:42]} 20. Nd5 {[%clk 0:02:26]}  Nxd5 {[%clk 0:01:38]} 21. Rxd5 {[%clk 0:02:26]}  b6 {[%clk 0:01:34]} 22. Be3 {[%clk 0:02:23]}  f5 {[%clk 0:01:32]} 23. Rad1 {[%clk 0:02:11]}  f4 {[%clk 0:01:32]} 24. Bc1 {[%clk 0:02:10]}  h4 {[%clk 0:01:27]} 25. Qe2 {[%clk 0:02:05]}  hxg3 {[%clk 0:00:59]} 26. hxg3 {[%clk 0:02:04]}  fxg3 {[%clk 0:00:44]} 27. fxg3 {[%clk 0:02:04]}  Qh3 {[%clk 0:00:45]} 28. Qg2 {[%clk 0:02:03]}  Qg4 {[%clk 0:00:45]} 29. R5d3 {[%clk 0:01:44]}  Rf7 {[%clk 0:00:43]} 30. Rd8+ {[%clk 0:01:38]}  Rxd8 {[%clk 0:00:41]} 31. Rxd8+ {[%clk 0:01:39]}  Rf8 {[%clk 0:00:36]} 32. Rxf8+ {[%clk 0:01:39]}  Bxf8 {[%clk 0:00:37]} 33. Be3 {[%clk 0:01:35]}  Qd1+ {[%clk 0:00:36]} 34. Qf1 {[%clk 0:01:32]}  Qxb3 {[%clk 0:00:36]} 35. Qf6 {[%clk 0:01:12]}  Qd1+ {[%clk 0:00:19]} 36. Kf2 {[%clk 0:01:12]}  Qc2+ {[%clk 0:00:20]} 37. Kf3 {[%clk 0:01:11]}  Qd1+ {[%clk 0:00:20]} 38. Kf2 {[%clk 0:01:12]}  Qc2+ {[%clk 0:00:21]} 39. Kf3 {[%clk 0:01:12]}  Qd1+ {[%clk 0:00:12]} 40. Kf2 {[%clk 0:01:12]} 1/2-1/2


[Site "https://www.chess.com"]

[Event "Titled Tuesday Blitz May 2 Early 2023"]
[White "Acor, Corey"]
[Black "Girya, Olga"]
[WhiteFideId "2024861"]
[BlackFideId "4195752"]
[WhiteElo "2341"]
[BlackElo "2263"]
[Result "1-0"]
[Round "05"]
[TimeControl "180+2"]
[Date "2023.05.02"]
[WhiteClock "0:01:13"]
[BlackClock "0:00:32"]

1. e4 {[%clk 0:02:58]}  e5 {[%clk 0:02:59]} 2. Nf3 {[%clk 0:02:54]}  Nc6 {[%clk 0:03:00]} 3. Bc4 {[%clk 0:02:55]}  Bc5 {[%clk 0:02:59]} 4. c3 {[%clk 0:02:54]}  Nf6 {[%clk 0:02:59]} 5. d4 {[%clk 0:02:54]}  exd4 {[%clk 0:02:59]} 6. cxd4 {[%clk 0:02:55]}  Bb4+ {[%clk 0:02:56]} 7. Bd2 {[%clk 0:02:54]}  Bxd2+ {[%clk 0:02:43]} 8. Nbxd2 {[%clk 0:02:55]}  d5 {[%clk 0:02:42]} 9. exd5 {[%clk 0:02:54]}  Nxd5 {[%clk 0:02:42]} 10. O-O {[%clk 0:02:39]}  O-O {[%clk 0:02:42]} 11. Rc1 {[%clk 0:02:35]}  h6 {[%clk 0:02:34]} 12. Re1 {[%clk 0:02:33]}  Bg4 {[%clk 0:02:19]} 13. h3 {[%clk 0:02:13]}  Bxf3 {[%clk 0:02:16]} 14. Nxf3 {[%clk 0:02:11]}  Qd6 {[%clk 0:02:00]} 15. Ne5 {[%clk 0:02:00]}  Nce7 {[%clk 0:01:38]} 16. Qb3 {[%clk 0:01:55]}  Rab8 {[%clk 0:01:37]} 17. Re4 {[%clk 0:01:32]}  c6 {[%clk 0:01:35]} 18. Rce1 {[%clk 0:01:29]}  Nf5 {[%clk 0:00:57]} 19. Qf3 {[%clk 0:01:15]}  Nh4 {[%clk 0:00:32]} 20. Rxh4 {[%clk 0:01:13]} 1-0


[Site "https://www.chess.com"]

[Event "Titled Tuesday Blitz May 2 Early 2023"]
[White "Jeet, Jain"]
[Black "Xu, Yi"]
[WhiteFideId "5073022"]
[BlackFideId "8605564"]
[WhiteElo "2067"]
[BlackElo "2471"]
[Result "1/2-1/2"]
[Round "05"]
[TimeControl "180+2"]
[Date "2023.05.02"]
[WhiteClock "0:00:11"]
[BlackClock "0:00:06"]

1. Nf3 {[%clk 0:03:00]}  c5 {[%clk 0:02:58]} 2. g3 {[%clk 0:03:01]}  Nc6 {[%clk 0:02:57]} 3. c4 {[%clk 0:02:59]}  g6 {[%clk 0:02:56]} 4. Nc3 {[%clk 0:02:59]}  Bg7 {[%clk 0:02:57]} 5. Bg2 {[%clk 0:02:59]}  e6 {[%clk 0:02:55]} 6. e3 {[%clk 0:02:58]}  Nge7 {[%clk 0:02:54]} 7. O-O {[%clk 0:02:58]}  d5 {[%clk 0:02:54]} 8. cxd5 {[%clk 0:02:58]}  exd5 {[%clk 0:02:54]} 9. d4 {[%clk 0:02:59]}  cxd4 {[%clk 0:02:53]} 10. exd4 {[%clk 0:02:59]}  O-O {[%clk 0:02:53]} 11. h3 {[%clk 0:02:58]}  Bf5 {[%clk 0:02:53]} 12. Re1 {[%clk 0:02:54]}  Qd7 {[%clk 0:02:52]} 13. Ne5 {[%clk 0:02:54]}  Nxe5 {[%clk 0:02:47]} 14. dxe5 {[%clk 0:02:54]}  Bxh3 {[%clk 0:02:45]} 15. Nxd5 {[%clk 0:02:54]}  Nxd5 {[%clk 0:02:16]} 16. Qxd5 {[%clk 0:02:54]}  Qxd5 {[%clk 0:02:13]} 17. Bxd5 {[%clk 0:02:55]}  Rae8 {[%clk 0:02:14]} 18. f4 {[%clk 0:02:30]}  b6 {[%clk 0:02:12]} 19. Be3 {[%clk 0:02:22]}  Be6 {[%clk 0:02:06]} 20. Rad1 {[%clk 0:02:11]}  Bxd5 {[%clk 0:02:00]} 21. Rxd5 {[%clk 0:02:12]}  f6 {[%clk 0:02:01]} 22. Bd4 {[%clk 0:02:05]}  fxe5 {[%clk 0:01:52]} 23. Bxe5 {[%clk 0:01:59]}  Rf5 {[%clk 0:01:50]} 24. Rd7 {[%clk 0:01:54]}  Rf7 {[%clk 0:01:42]} 25. Rd5 {[%clk 0:01:17]}  Rfe7 {[%clk 0:01:34]} 26. Kf2 {[%clk 0:01:16]}  Bxe5 {[%clk 0:01:28]} 27. fxe5 {[%clk 0:01:12]}  Kf7 {[%clk 0:01:22]} 28. Kf3 {[%clk 0:01:06]}  Rc8 {[%clk 0:01:15]} 29. Re2 {[%clk 0:01:03]}  Ke6 {[%clk 0:01:09]} 30. Rd6+ {[%clk 0:01:02]}  Kf5 {[%clk 0:01:09]} 31. Rf6+ {[%clk 0:00:58]}  Kg5 {[%clk 0:01:09]} 32. Rf4 {[%clk 0:00:57]}  h5 {[%clk 0:01:02]} 33. b4 {[%clk 0:00:44]}  Rc3+ {[%clk 0:00:58]} 34. Kg2 {[%clk 0:00:43]}  Re6 {[%clk 0:00:56]} 35. Rd4 {[%clk 0:00:37]}  a6 {[%clk 0:00:52]} 36. Rd6 {[%clk 0:00:26]}  Kf5 {[%clk 0:00:44]} 37. Rd8 {[%clk 0:00:21]}  Rc4 {[%clk 0:00:32]} 38. Rf8+ {[%clk 0:00:20]}  Kg5 {[%clk 0:00:32]} 39. Ra8 {[%clk 0:00:20]}  Rxb4 {[%clk 0:00:27]} 40. Rxa6 {[%clk 0:00:20]}  Kf5 {[%clk 0:00:25]} 41. Ra8 {[%clk 0:00:19]}  Re4 {[%clk 0:00:23]} 42. Rf8+ {[%clk 0:00:19]}  Kxe5 {[%clk 0:00:23]} 43. Rxe4+ {[%clk 0:00:16]}  Kxe4 {[%clk 0:00:23]} 44. Ra8 {[%clk 0:00:16]}  Ke3 {[%clk 0:00:22]} 45. a4 {[%clk 0:00:16]}  Kd4 {[%clk 0:00:16]} 46. a5 {[%clk 0:00:16]}  b5 {[%clk 0:00:09]} 47. a6 {[%clk 0:00:16]}  Kc5 {[%clk 0:00:04]} 48. a7 {[%clk 0:00:15]}  Kb6 {[%clk 0:00:04]} 49. Rb8+ {[%clk 0:00:15]}  Kxa7 {[%clk 0:00:04]} 50. Rxb5 {[%clk 0:00:16]}  Rb6 {[%clk 0:00:05]} 51. Rxb6 {[%clk 0:00:09]}  Kxb6 {[%clk 0:00:05]} 52. Kf3 {[%clk 0:00:10]}  g5 {[%clk 0:00:04]} 53. Ke4 {[%clk 0:00:10]}  Kc5 {[%clk 0:00:04]} 54. Kf5 {[%clk 0:00:10]}  h4 {[%clk 0:00:05]} 55. gxh4 {[%clk 0:00:10]}  gxh4 {[%clk 0:00:05]} 56. Kg4 {[%clk 0:00:11]}  h3 {[%clk 0:00:06]} 57. Kxh3 {[%clk 0:00:11]} 1/2-1/2


[Site "https://www.chess.com"]